fUSD/lending_fUSD_20240614
["ID","MTS","AMOUNT","RATE_DAILY","PERIOD"]
[329447697,1718364645408,-1600.0,0.00022876,2]
[329447698,1718364645422,-849.68,0.00022886,2]
[329447699,1718364645480,-1499.40159744,0.00022897,2]
[329447700,1718364645496,-538.09065893,0.00022898,2]
[329447701,1718364645527,-156.78906714,0.00022898,2]
[329447702,1718364645546,-400.0,0.000229,8]
[329447703,1718364645558,-155.0,0.00023285,4]
[329447704,1718364645576,-417.77,0.00023288,2]
[329447705,1718364645588,-417.77,0.00023288,2]
[329447706,1718364645600,-417.77,0.00023288,2]
[329447707,1718364645616,-417.77,0.00023288,2]
[329447708,1718364645633,-417.77,0.00023288,2]
[329447709,1718364645651,-440.48,0.00023288,2]
[329447710,1718364645664,-500.0,0.00023288,2]
[329447711,1718364645675,-500.0,0.00023288,2]
[329447712,1718364645699,-500.0,0.00023288,2]
[329447713,1718364645745,-500.0,0.00023288,2]
[329447714,1718364645759,-500.0,0.00023288,2]
[329447715,1718364645781,-197.1200385,0.0002329,2]
[329447716,1718364645804,-258.12664717,0.0002329,2]
[329447717,1718364645823,-277.94953345,0.00023359,2]
[329447718,1718364645834,-1094.43747912,0.00023402,2]
[329447719,1718364645845,-500.0,0.00023424,2]
[329447720,1718364645856,-500.0,0.00023424,2]
[329447721,1718364645866,-800.0,0.000235,8]
[329447722,1718364645887,-176.62524942,0.00023597,2]
[329447723,1718364645900,-646.2353513,0.00023597,2]
[329447724,1718364645910,-2046.44367817,0.00023598,2]
[329447725,1718364645921,-269.27586488,0.00023598,2]
[329447726,1718364645934,-1200.0,0.000236,8]
[329447727,1718364645953,-500.0,0.00023649,2]
[329447728,1718364645990,-200.0,0.00023649,2]
[329447729,1718364646002,-500.0,0.00023688,2]
[329447730,1718364646030,-2600.0,0.00023698,2]
[329447731,1718364646046,-1000.0,0.00023699,2]
[329447732,1718364646069,-1700.0,0.000237,8]
[329447733,1718364646100,-150.0,0.00023732,2]
[329447734,1718364646113,-659.27820915,0.00023776,2]
[329447735,1718364646130,-862.778,0.00023779,2]
[329447736,1718364646154,-14155.382,0.00023779,2]
[329447737,1718364646202,-1000.0,0.0002378,2]
[329447738,1718364646237,-10000.0,0.0002378,2]
[329447739,1718364646254,-14153.94778135,0.0002378,2]
[329447740,1718364646270,-177.1930239,0.0002378,2]
[329447741,1718364646285,-154.20198687,0.0002378,2]
[329447742,1718364646295,-197.1200385,0.0002378,2]
[329447743,1718364646322,-258.12664717,0.0002378,2]
[329447744,1718364646372,-489.0,0.000238,7]
[329447745,1718364646393,-978.0,0.000238,7]
[329447746,1718364646404,-305.0,0.000238,2]
[329447747,1718364646429,-611.0,0.000238,2]
[329447748,1718364646443,-2100.0,0.000238,8]
[329447749,1718364646566,-190.0,0.000238,7]
[329447750,1718364646599,-150.0,0.000238,4]
[329447751,1718364646659,-152.4,0.0002387,2]
[329447752,1718364646678,-1824.3887465,0.00023874,2]
[329447753,1718364646697,-610.9167252,0.00023874,2]
[329447754,1718364646736,-865.71020719,0.00023877,2]
[329447755,1718364646753,-412.16869182,0.00023877,2]
[329447756,1718364646766,-362.02673304,0.00023877,10]
[329447757,1718364646820,-402.49595915,0.00023878,2]
[329447758,1718364646840,-1524.63530021,0.00023878,2]
[329447759,1718364646862,-10748.79092492,0.00023879,2]
[329447760,1718364646930,-148557.07650589,0.0002388,2]
[329447762,1718364647417,-499.83485595,0.0002388,2]
[329447763,1718364648100,-2789.46621071,0.0002388,2]
[329447764,1718364648814,-222906.87345166,0.0002388,2]
[329447765,1718364648960,-296.05843551,0.00022601,2]
[329447766,1718364648988,-1277.68765884,0.0002388,2]
[329447767,1718364649008,-359.48000001,0.0002388,2]
[329447768,1718364649022,-1047.43920001,0.0002388,2]
[329447769,1718364649042,-3493.55439296,0.0002388,2]
[329447770,1718364649089,-523.392,0.0002388,2]
[329447771,1718364650126,-542.713,0.00016158,2]
[329447772,1718364650151,-86238.07530315,0.0002388,2]
[329447773,1718364650236,-157.13383188,0.000226,2]
[329447774,1718364650261,-818.37359064,0.0002388,2]
[329447775,1718364650579,-697.44220978,0.0002388,2]
[329447776,1718364650633,-70449.61707785,0.0002388,2]
[329447777,1718364650655,-107337.64960307,0.0002388,2]
[329447778,1718364650686,-67690.66079285,0.0002388,2]
[329447779,1718364650710,-70518.49144122,0.0002388,2]
[329447780,1718364651001,-5301.01197096,0.0002388,2]
[329447781,1718364651048,-576.99195034,0.0002388,2]
[329447782,1718364651089,-933.95000001,0.0002388,2]
[329447783,1718364651402,-518.90570714,0.0002388,2]
[329447784,1718364651929,-2393.99893599,0.0002388,2]
[329447785,1718364651973,-880.21195323,0.0002388,2]
[329447786,1718364652455,-1506.22593626,0.0002388,2]
[329447787,1718364652481,-2095.04719739,0.0002388,2]
[329447788,1718364652507,-5763.73204752,0.0002388,2]
[329447790,1718364652764,-500.0,0.0002388,2]
[329447791,1718364653021,-712.04599,0.0002388,2]
[329447792,1718364653058,-663.79570028,0.0002388,2]
[329447793,1718364738505,-171.92,0.0001115,2]
[329447794,1718364738558,-250.0,0.00013937,2]
[329447795,1718364738608,-179.51,0.00013937,2]
[329447796,1718364778189,263.82580586,0.00013937,2]
[329447797,1718364812398,166.29,0.00013937,2]
[329447798,1718364824404,498968.45419414,0.00014,2]
[329447800,1718364870509,1200.0,6.94e-05,2]
[329447807,1718365202730,150.0,6.94e-05,2]
[329447808,1718365203173,150.0,6.94e-05,2]
[329447809,1718365203381,220.20685692,6.94e-05,2]
[329447813,1718365633354,-2368.9409825,0.00010266,2]
[329447814,1718365651247,-363.17338025,0.00010265,2]
[329447815,1718365651288,-115.95514853,0.00010266,2]
[329447816,1718365651331,-942.89791342,0.00010365,2]
[329447817,1718365651384,-522.92042804,0.00010366,2]
[329447818,1718365651427,-942.89791342,0.00010366,2]
[329447819,1718365651503,-17.54703082,0.00010367,2]
[329447820,1718365714153,-161.94729935,0.00010164,2]
[329447821,1718365714194,-1300.57514407,0.00010262,2]
[329447822,1718365714230,-659.46610537,0.00010263,2]
[329447823,1718365714262,-1157.01145121,0.00010264,2]
[329447824,1718365749426,-300.0,0.00010162,2]
[329447825,1718365749469,-206.14054789,0.00010163,2]
[329447826,1718365749502,-1566.28612284,0.00010163,2]
[329447827,1718365765137,-1498.39900082,0.00010161,2]
[329447828,1718365765187,-5750.61219654,0.00010163,2]
[329447829,1718365769099,-756.25,0.00010163,2]
[329447852,1718365833339,-682.78680177,0.00010263,2]
[329447853,1718365833351,-146.38680602,0.00010264,2]
[329447854,1718365833383,-407.02497445,0.00010367,2]
[329447855,1718365833411,-156.04,0.00010373,2]
[329447856,1718365833432,-623.13,0.00012019,2]
[329447857,1718365833447,-355.79,0.00012888,2]
[329447858,1718365833459,-1402.88,0.00012953,2]
[329447859,1718365833478,-5037.20999863,0.00012961,2]
[329447860,1718365833532,-2015.05034501,0.00012961,2]
[329447861,1718365833676,-0.57650646,0.00012961,2]
[329447862,1718365833704,-364.67036088,0.00012961,2]
[329447863,1718365833763,-411.43338683,0.00012961,2]
[329447864,1718365834052,-407.34944104,0.00012961,2]
[329447865,1718365834247,-15663.70996115,0.00012961,2]
[329447866,1718365834258,-250.0,0.00012962,2]
[329447867,1718365834271,-150.0,0.00012986,2]
[329447868,1718365834282,-166.29,0.00013699,2]
[329447869,1718365834306,-325.91,0.00013699,2]
[329447870,1718365834318,-277.94953345,0.00013858,2]
[329447871,1718365834333,-344.20219897,0.00013899,2]
[329447872,1718365834345,-197.1200385,0.00013899,2]
[329447873,1718365834359,-1000.0,0.000139,2]
[329447874,1718365834373,-400.0,0.000139,5]
[329447875,1718365834385,-258.12664719,0.000139,2]
[329447876,1718365834397,-563.67,0.00013937,2]
[329447877,1718365834409,-330.62,0.00013937,2]
[329447878,1718365834421,-316.8,0.00013937,2]
[329447879,1718365834437,-250.0,0.00013937,2]
[329447880,1718365834448,-563.67,0.00013941,2]
[329447881,1718365834460,-563.67,0.00013944,2]
[329447882,1718365834471,-563.67,0.00013948,2]
[329447883,1718365834489,-299.99,0.00013948,2]
[329447884,1718365834508,-563.67,0.00013952,2]
[329447885,1718365834518,-563.67,0.00013955,2]
[329447886,1718365834532,-563.67,0.00013959,2]
[329447887,1718365834546,-563.67,0.00013963,2]
[329447888,1718365834560,-563.67,0.00013966,2]
[329447889,1718365834575,-563.67,0.0001397,2]
[329447890,1718365834595,-268.62464848,0.00013974,2]
[329447891,1718365834614,-295.04535152,0.00013974,2]
[329447892,1718365834626,-563.67,0.00013977,2]
[329447893,1718365834638,-563.67,0.00013981,2]
[329447894,1718365834652,-563.67,0.00013985,2]
[329447895,1718365834676,-563.67,0.00013989,2]
[329447896,1718365834688,-152.22,0.0001399,2]
[329447897,1718365834707,-563.67,0.00013992,2]
[329447898,1718365834721,-563.67,0.00013996,2]
[329447899,1718365834735,-361.69947237,0.00013997,2]
[329447900,1718365834747,-522.48324848,0.00013997,2]
[329447901,1718365834758,-306.93698546,0.00013997,2]
[329447902,1718365834797,-210.33615225,0.00013997,2]
[329447903,1718365834875,-1790.84416998,0.00013997,2]
[329447904,1718365834886,-269.16702376,0.00013997,2]
[329447905,1718365834899,-156.78906714,0.00013998,2]
[329447906,1718365834916,-155.0,0.00013998,4]
[329447907,1718365834928,-538.09065893,0.00013998,2]
[329447908,1718365834942,-1134.37435853,0.00013998,2]
[329447909,1718365834955,-201.67489333,0.00013998,2]
[329447910,1718365834967,-155.0,0.00013998,2]
[329447911,1718365834979,-155.0,0.00013998,2]
[329447912,1718365834992,-1067.75598538,0.00013998,2]
[329447913,1718365835005,-2194.64407392,0.00013998,2]
[329447914,1718365835022,-193.21503737,0.00013998,2]
[329447915,1718365835040,-688.78661675,0.00013998,2]
[329447916,1718365835057,-2637.65825137,0.00013998,2]
[329447926,1718365842456,-3123.53,0.00013998,2]
[329447927,1718365842472,-1978.84469608,0.00013998,2]
[329447928,1718365842484,-490.2568696,0.00013998,2]
[329447929,1718365842502,-307.45960582,0.00013998,2]
[329447930,1718365842521,-400.0,0.00013998,2]
[329447931,1718365842533,-155.0,0.00013998,2]
[329447932,1718365842559,-217.44360157,0.00013998,2]
[329447933,1718365842601,-93.66776893,0.00013998,2]
[329447934,1718365842618,-170.18221371,0.00013998,2]
[329447935,1718365842634,-365.25381953,0.00013998,2]
[329447936,1718365842734,-159.96085098,0.00013998,2]
[329447937,1718365842752,-205.67039254,0.00013998,2]
[329447938,1718365842770,-132.72703935,0.00013998,2]
[329447939,1718365843002,-25.64101616,0.00013998,2]
[329447940,1718365843020,-155.0,0.00013998,2]
[329447941,1718365843048,-181.46353453,0.00013999,2]
[329447942,1718365843069,-15546.28029902,0.00013999,2]
[329447943,1718365843280,-485.54925207,0.00013999,2]
[329447944,1718365843296,-1730.84596,0.00013999,2]
[329447945,1718365843350,-344403.57516641,0.00013999,2]
[329447946,1718365843366,-2539.18163078,0.00013999,2]
[329447947,1718365843492,-362.26956143,0.00013999,2]
[329447962,1718365844080,-5392.16334317,0.00013999,2]
[329447963,1718365844129,-3793.98626351,0.00013999,2]
[329447966,1718365844263,-3149.44007793,0.00013999,2]
[329447967,1718365844576,-993.12736041,0.00013999,2]
[329447968,1718365844627,-4209.34908221,0.00013999,2]
[329447974,1718365845050,-485.85127002,0.00013999,2]
[329447975,1718365845335,-2719.99850803,0.00013999,2]
[329447976,1718365845348,-15040.26670918,0.00013999,2]
[329447977,1718365845504,-62058.30623478,0.00013999,2]
[329447978,1718365845517,-563.67,0.00014,2]
[329447979,1718365845533,-296901.71062752,0.00014,2]
[329447980,1718365845547,-2487.9464448,0.00014,2]
[329447981,1718365845559,-563.67,0.00014003,2]
[329447982,1718365845587,-563.67,0.00014007,2]
[329447983,1718365845599,-623.13,0.00014283,2]
[329447984,1718365845614,-258.12664717,0.00014513,2]
[329447985,1718365845635,-800.0,0.000149,5]
[329447986,1718365845647,-152.22,0.0001499,2]
[329447987,1718365845683,-187116.55170104,0.00015,2]
[329447988,1718365845697,-1500.0,0.00015,2]
[329447989,1718365845808,-861.2,0.00015,2]
[329447990,1718365846005,-2287.26302407,0.00015,2]
[329447991,1718365846156,-40095.36032493,0.00015,2]
[329447992,1718365846169,-168069.88019088,0.00015,2]
[329447993,1718365846184,-2962.28790873,0.00015,2]
[329447994,1718365846343,-328.77481563,0.00012597,2]
[329447995,1718365846355,-50.62829819,0.00015,2]
[329447996,1718365846377,-24948.90388831,0.00015,2]
[329447997,1718365846414,-67926.84259753,0.00015,2]
[329447999,1718365846469,-22224.08937347,0.00015,2]
[329448000,1718365846483,-515.1,0.00015,2]
[329448002,1718365846557,-5878.8,0.00015,2]
[329448003,1718365846838,-10038.03490918,0.00015,2]
[329448004,1718365846883,-3678.9,0.00015,2]
[329448005,1718365846916,-155793.04126529,0.00015,2]
[329448006,1718365846934,-258.12664717,0.00015125,2]
[329448007,1718365846945,-172.47,0.00015425,2]
[329448008,1718365846958,-330.62,0.00015679,2]
[329448010,1718365846978,-1402.88,0.00015693,2]
[329448012,1718365846991,-167.0,0.00015831,2]
[329448013,1718365847014,-179.51,0.0001626,2]
[329448014,1718365847040,-1337.76,0.00016438,2]
[329448015,1718365847054,-167.0,0.00016484,2]
[329448016,1718365847066,-623.13,0.00016547,2]
[329448018,1718365847079,-504.393,0.00017046,2]
[329448019,1718365847090,-626.312,0.00017046,2]
[329448020,1718365847108,-2218.0323,0.00017068,2]
[329448021,1718365847127,-3444.0,0.000171,2]
[329448022,1718365847169,-916.0,0.000171,2]
[329448023,1718365847182,-167.0,0.00017137,2]
[329448024,1718365847208,-330.62,0.00017421,2]
[329448025,1718365847246,-167.0,0.00017791,2]
[329448026,1718365847264,-1460.78782231,0.00018,2]
[329448027,1718365847292,-650.10119046,0.00018,2]
[329448028,1718365847304,-197.1200385,0.0001834,2]
[329448029,1718365847323,-1402.88,0.00018432,2]
[329448030,1718365847335,-167.0,0.00018444,2]
[329448031,1718365847348,-179.51,0.00018583,2]
[329448032,1718365847366,-623.13,0.00018811,2]
[329448033,1718365847379,-412.16869182,0.00019,2]
[329448034,1718365847392,-330.62,0.00019164,2]
[329448035,1718365847407,-459.7174151,0.00019178,2]
[329448036,1718365847420,-500.0,0.00019178,2]
[329448037,1718365847434,-500.0,0.00019178,2]
[329448038,1718365847445,-500.0,0.00019178,2]
[329448039,1718365847457,-221.84164434,0.00019178,2]
[329448040,1718365847468,-579.1866078,0.00019178,2]
[329448041,1718365847479,-500.0,0.00019178,2]
[329448042,1718365847494,-500.0,0.00019178,2]
[329448043,1718365847507,-500.0,0.00019178,2]
[329448044,1718365847530,-871.94,0.00019178,2]
[329448046,1718365847566,-325.91,0.00019178,2]
[329448047,1718365847593,-865.71020719,0.0002,2]
[329448049,1718365847614,-335.7745108,0.0002,2]
[329448050,1718365847632,-822.16666231,0.0002,2]
[329448052,1718365847649,-66735.0,0.0002,2]
[329448053,1718365847664,-40232.40122692,0.0002,2]
[329448054,1718365847678,-226.78109354,0.000201,2]
[329448055,1718365847697,-1200.0,0.00020136,2]
[329448056,1718365847715,-500.0,0.00020136,2]
[329448057,1718365847731,-1600.0,0.00020136,2]
[329448058,1718365847746,-500.0,0.00020136,2]
[329448060,1718365847777,-3636.431,0.00020286,2]
[329448062,1718365847824,-11743.0,0.000205,3]
[329448063,1718365847835,-1200.0,0.00020684,2]
[329448064,1718365847854,-1600.0,0.00020684,2]
[329448065,1718365847881,-500.0,0.00020684,2]
[329448066,1718365847894,-1200.0,0.000209,7]
[329448067,1718365847921,-179.51,0.00020906,2]
[329448068,1718365847943,-330.62,0.00020906,2]
[329448070,1718365847959,-1250.0,0.00021,2]
[329448072,1718365847977,-623.13,0.00021075,2]
[329448074,1718365847990,-3627.124,0.00021086,2]
[329448076,1718365848004,-11743.0,0.000211,5]
[329448081,1718365848029,-500.0,0.00021232,2]
[329448084,1718365848041,-1200.0,0.00021232,2]
[329448086,1718365848052,-1600.0,0.00021232,2]
[329448087,1718365848071,-500.0,0.00021232,2]
[329448090,1718365848085,-1200.0,0.0002178,2]
[329448092,1718365848107,-1600.0,0.0002178,2]
[329448094,1718365848125,-152.45,0.00021918,2]
[329448096,1718365848136,-3627.837,0.0002215,2]
[329448098,1718365848151,-2046.44367817,0.00022199,2]
[329448100,1718365848173,-646.2353513,0.00022199,2]
[329448102,1718365848186,-500.0,0.00022328,2]
[329448105,1718365848227,-500.0,0.00022328,2]
[329448107,1718365848239,-1200.0,0.00022328,2]
[329448109,1718365848250,-449.43233734,0.00022398,2]
[329448110,1718365848265,-1297.00899276,0.00022399,2]
[329448112,1718365848280,-197.1200385,0.0002278,2]
[329448114,1718365848296,-12156.6682,0.00022799,2]
[329448116,1718365848308,-1600.0,0.00022876,2]
[329448117,1718365848326,-1200.0,0.00022876,2]
[329448119,1718365848337,-500.0,0.0002288,2]
[329448121,1718365848349,-500.0,0.0002288,2]
[329448123,1718365848368,-500.0,0.0002288,2]
[329448126,1718365848381,-500.0,0.0002288,2]
[329448127,1718365848397,-500.0,0.0002288,2]
[329448129,1718365848409,-500.0,0.0002288,2]
[329448132,1718365848428,-500.0,0.0002288,2]
[329448134,1718365848473,-500.0,0.0002288,2]
[329448136,1718365848493,-500.0,0.0002288,2]
[329448138,1718365848506,-500.0,0.0002288,2]
[329448140,1718365848532,-500.0,0.0002288,2]
[329448142,1718365848543,-500.0,0.0002288,2]
[329448144,1718365848557,-500.0,0.0002288,2]
[329448146,1718365848580,-500.0,0.0002288,2]
[329448148,1718365848596,-500.0,0.0002288,2]
[329448150,1718365848608,-500.0,0.0002288,2]
[329448153,1718365848624,-500.0,0.0002288,2]
[329448155,1718365848636,-500.0,0.0002288,2]
[329448157,1718365848661,-500.0,0.0002288,2]
[329448158,1718365848672,-500.0,0.0002288,2]
[329448161,1718365848690,-500.0,0.0002288,2]
[329448163,1718365848718,-500.0,0.0002288,2]
[329448165,1718365848731,-500.0,0.0002288,2]
[329448167,1718365848744,-500.0,0.0002288,2]
[329448168,1718365848767,-500.0,0.0002288,2]
[329448170,1718365848780,-500.0,0.0002288,2]
[329448172,1718365848803,-500.0,0.0002288,2]
[329448173,1718365848819,-500.0,0.0002288,2]
[329448175,1718365848830,-500.0,0.0002288,2]
[329448186,1718365848972,-500.0,0.0002288,2]
[329448187,1718365848986,-500.0,0.0002288,2]
[329448190,1718365849028,-500.0,0.0002288,2]
[329448192,1718365849040,-500.0,0.0002288,2]
[329448194,1718365849053,-500.0,0.0002288,2]
[329448196,1718365849073,-500.0,0.0002288,2]
[329448197,1718365849085,-500.0,0.0002288,2]
[329448199,1718365849113,-500.0,0.0002288,2]
[329448201,1718365849130,-500.0,0.0002288,2]
[329448204,1718365849189,-500.0,0.0002288,2]
[329448207,1718365849216,-500.0,0.0002288,2]
[329448208,1718365849237,-500.0,0.0002288,2]
[329448210,1718365849248,-500.0,0.0002288,2]
[329448212,1718365849259,-500.0,0.0002288,2]
[329448213,1718365849269,-500.0,0.0002288,2]
[329448214,1718365849298,-500.0,0.0002288,2]
[329448216,1718365849322,-500.0,0.0002288,2]
[329448219,1718365849336,-500.0,0.0002288,2]
[329448221,1718365849348,-500.0,0.0002288,2]
[329448222,1718365849370,-500.0,0.0002288,2]
[329448225,1718365849391,-500.0,0.0002288,2]
[329448227,1718365849430,-500.0,0.0002288,2]
[329448229,1718365849477,-500.0,0.0002288,2]
[329448231,1718365849491,-500.0,0.0002288,2]
[329448234,1718365849507,-500.0,0.0002288,2]
[329448237,1718365849534,-500.0,0.0002288,2]
[329448239,1718365849592,-500.0,0.0002288,2]
[329448242,1718365849620,-500.0,0.0002288,2]
[329448243,1718365849657,-500.0,0.0002288,2]
[329448245,1718365849674,-500.0,0.0002288,2]
[329448247,1718365849712,-500.0,0.0002288,2]
[329448249,1718365849747,-500.0,0.0002288,2]
[329448251,1718365849769,-500.0,0.0002288,2]
[329448253,1718365849786,-500.0,0.0002288,2]
[329448254,1718365849798,-500.0,0.0002288,2]
[329448255,1718365849815,-500.0,0.0002288,2]
[329448257,1718365849886,-500.0,0.0002288,2]
[329448259,1718365849907,-500.0,0.0002288,2]
[329448260,1718365849925,-500.0,0.0002288,2]
[329448261,1718365849947,-500.0,0.0002288,2]
[329448262,1718365849964,-249.56,0.0002288,2]
[329448263,1718365849988,-500.0,0.0002288,2]
[329448264,1718365850008,-500.0,0.0002288,2]
[329448265,1718365850027,-500.0,0.0002288,2]
[329448266,1718365850038,-500.0,0.0002288,2]
[329448267,1718365850057,-500.0,0.0002288,2]
[329448268,1718365850086,-500.0,0.0002288,2]
[329448269,1718365850116,-500.0,0.0002288,2]
[329448270,1718365850142,-500.0,0.0002288,2]
[329448271,1718365850162,-500.0,0.0002288,2]
[329448272,1718365850203,-500.0,0.0002288,2]
[329448273,1718365850217,-267.1,0.0002288,2]
[329448274,1718365850245,-500.0,0.0002288,2]
[329448275,1718365850256,-500.0,0.0002288,2]
[329448276,1718365850269,-500.0,0.0002288,2]
[329448277,1718365850281,-6363.31543294,0.00023,2]
[329448278,1718365850300,-300.0,0.00023131,2]
[329448279,1718365850319,-3735.131,0.00023252,2]
[329448280,1718365850333,-623.13,0.00023339,2]
[329448281,1718365850344,-514.308195,0.00023368,7]
[329448282,1718365850354,-151.0,0.00023368,7]
[329448283,1718365850370,-514.308195,0.00023368,7]
[329448284,1718365850381,-152.1174,0.00023368,7]
[329448285,1718365850396,-153.842713,0.00023368,7]
[329448286,1718365850420,-151.0,0.00023368,7]
[329448287,1718365850436,-151.0,0.00023368,7]
[329448288,1718365850450,-151.0,0.00023368,7]
[329448289,1718365850488,-151.0,0.00023368,7]
[329448290,1718365850549,-168.588591,0.00023368,7]
[329448291,1718365850577,-151.0,0.00023368,7]
[329448292,1718365850600,-157.60096,0.00023368,7]
[329448293,1718365850615,-151.0,0.00023368,7]
[329448294,1718365850647,-151.0,0.00023368,7]
[329448295,1718365850658,-157.879809,0.00023368,7]
[329448296,1718365850680,-5618.11138893,0.00023368,2]
[329448297,1718365850690,-19999.99,0.00023368,2]
[329448298,1718365850714,-29999.99,0.00023368,2]
[329448299,1718365850728,-4417.99,0.00023368,2]
[329448300,1718365850747,-29999.99,0.00023368,2]
[329448301,1718365850804,-6232.21,0.00023368,2]
[329448302,1718365850835,-9999.99,0.00023368,2]
[329448303,1718365850853,-500.0,0.00023402,2]
[329448304,1718365850875,-500.0,0.00023402,2]
[329448305,1718365850899,-1129.23986084,0.00023402,2]
[329448306,1718365850913,-500.0,0.00023424,2]
[329448307,1718365850924,-500.0,0.00023424,2]
[329448308,1718365850945,-300.0,0.00023435,2]
[329448309,1718365850958,-7514.41262718,0.000236,2]
[329448310,1718365850988,-1500.0,0.00023607,2]
[329448311,1718365851004,-500.0,0.0002361,2]
[329448312,1718365851019,-150.0,0.00023611,2]
[329448313,1718365851036,-150.0,0.00023638,2]
[329448314,1718365851048,-1194.83255,0.0002364,2]
[329448315,1718365851068,-150.90124,0.00023641,2]
[329448316,1718365851086,-200.0,0.00023663,2]
[329448319,1718365851105,-500.0,0.00023663,2]
[329448321,1718365851128,-200.0,0.00023663,2]
[329448322,1718365851150,-150.0,0.00023666,2]
[329448324,1718365851173,-150.0,0.00023671,2]
[329448327,1718365851209,-150.0,0.00023686,2]
[329448329,1718365851232,-500.0,0.00023688,2]
[329448330,1718365851260,-200.0,0.00023688,2]
[329448331,1718365851271,-15385.300253,0.000237,2]
[329448332,1718365851284,-1700.0,0.000237,8]
[329448333,1718365851302,-150.0,0.00023704,2]
[329448334,1718365851320,-150.0,0.00023723,2]
[329448335,1718365851340,-1500.0,0.0002373,2]
[329448336,1718365851354,-300.0,0.00023739,2]
[329448337,1718365851368,-150.0,0.00023762,2]
[329448338,1718365851387,-1500.0,0.00023772,2]
[329448339,1718365851405,-862.778,0.00023779,2]
[329448340,1718365851422,-14155.382,0.00023779,2]
[329448341,1718365851435,-172.91734175,0.00023779,2]
[329448342,1718365851447,-18124.87856773,0.00023779,2]
[329448343,1718365851458,-177.19302389,0.00023779,2]
[329448344,1718365851475,-5619.6267,0.0002378,2]
[329448345,1718365851493,-727.6400463,0.0002378,2]
[329448346,1718365851506,-3706.599,0.00023781,2]
[329448347,1718365851516,-150.0,0.00023784,2]
[329448348,1718365851529,-489.0,0.000238,7]
[329448349,1718365851549,-978.0,0.000238,7]
[329448350,1718365851567,-305.0,0.000238,2]
[329448351,1718365851595,-611.0,0.000238,2]
[329448352,1718365851607,-190.0,0.000238,7]
[329448353,1718365851623,-2100.0,0.000238,8]
[329448354,1718365851635,-150.0,0.000238,4]
[329448355,1718365851654,-1500.0,0.00023804,2]
[329448356,1718365851672,-150.0,0.00023813,2]
[329448357,1718365851692,-150.0,0.00023826,2]
[329448358,1718365851710,-150.0,0.00023831,2]
[329448359,1718365851734,-150.0,0.00023832,2]
[329448360,1718365851749,-150.0,0.0002385,2]
[329448361,1718365851762,-1500.0,0.00023854,2]
[329448362,1718365851779,-386.12188804,0.00023857,2]
[329448363,1718365851824,-152.22,0.00023864,2]
[329448364,1718365851841,-150.0,0.00023868,2]
[329448365,1718365851852,-152.22,0.0002387,2]
[329448366,1718365851864,-152.22,0.0002387,2]
[329448367,1718365851885,-152.22,0.0002387,2]
[329448368,1718365851905,-152.22,0.0002387,2]
[329448369,1718365851933,-1455.1305013,0.00023874,2]
[329448370,1718365851961,-172.7461678,0.00023874,2]
[329448371,1718365851973,-181.8874004,0.00023874,2]
[329448372,1718365851991,-416.325512,0.00023874,2]
[329448373,1718365852004,-27674.1532765,0.00023874,2]
[329448374,1718365852018,-610.9167255,0.00023874,2]
[329448375,1718365852031,-300.0,0.00023876,2]
[329448376,1718365852054,-402.49595915,0.00023877,2]
[329448377,1718365852108,-1524.63530021,0.00023877,2]
[329448378,1718365852120,-917.08732665,0.00023877,2]